bitfinex/quotes_ETHUSD_20250925
["timestamp","ask_amount","ask_price","bid_price","bid_amount"]
[1758825009652,0.001,3890.2,3890.1,10.318628]
[1758825010334,0.001,3890.2,3890.1,11.60756389]
[1758825010535,0.001,3890.2,3890.1,12.30276389]
[1758825011391,0.001,3890.2,3890.1,5.34676389]
[1758825011609,0.001,3890.2,3890.1,12.30076389]
[1758825012090,0.001,3890.2,3890.1,12.42876389]
[1758825012666,0.001,3890.2,3890.1,15.42876389]
[1758825013894,0.001,3891.3,3890.1,15.42876389]
[1758825013895,0.001,3891.3,3891.2,6.36190131]
[1758825014194,0.2402,3893.7,3892.3,6.36117503]
[1758825014530,0.4308,3893.5,3892.3,20.00717503]
[1758825014796,0.2402,3893.6,3892.3,20.70237503]
[1758825014996,0.4308,3894.0,3892.3,20.70237503]
[1758825015209,0.2402,3893.4,3892.3,20.25047503]
[1758825016075,0.2402,3893.4,3892.3,6.60447503]
[1758825016395,0.2402,3892.9,3892.3,7.741]
[1758825016559,0.671,3892.7,3892.3,9.51817503]
[1758825016965,0.2412,3893.2,3892.3,10.31017503]
[1758825017501,0.2402,3892.9,3892.3,7.741]
[1758825017795,0.672,3892.4,3892.3,6.949]
[1758825018419,0.672,3892.4,3891.2,0.89318854]
[1758825018633,0.6765,3892.3,3891.4,2.569721]
[1758825018784,2.56951528,3891.8,3890.3,0.2265]
[1758825018985,3.2460836,3891.7,3890.4,6.945]
[1758825019221,0.6765,3891.7,3891.2,2.56983897]
[1758825019406,0.6765,3891.6,3891.3,6.945]
[1758825019716,0.6765,3891.5,3891.4,4.804]
[1758825020020,0.001,3892.4,3891.4,4.803]
[1758825020021,0.244,3891.9,3891.4,4.803]
[1758825020322,0.244,3891.9,3890.1,1.28893589]
[1758825020323,0.6765,3891.8,3890.1,1.28893589]
[1758825020538,2.56976119,3891.5,3890.2,6.277]
[1758825020821,0.6765,3891.4,3890.9,2.57005803]
[1758825021006,0.244,3891.4,3891.0,9.51298339]
[1758825021320,0.4325,3891.8,3891.1,6.96869967]
[1758825021619,0.4325,3891.8,3891.4,2.56971613]
[1758825021822,0.4325,3891.8,3891.5,4.802]
[1758825022033,0.244,3891.9,3891.6,4.82669637]
[1758825022212,0.244,3891.9,3891.2,2.141]
[1758825022213,0.244,3891.9,3891.7,4.801]
[1758825022786,0.6765,3891.8,3891.7,4.801]
[1758825023801,0.128,3892.3,3891.7,4.801]
[1758825024019,2.69718914,3892.3,3891.7,4.801]
[1758825024223,0.128,3892.3,3891.7,4.801]
[1758825024430,2.5692423,3892.2,3891.7,4.801]
[1758825024727,2.5692423,3892.2,3891.6,0.128]
[1758825024728,0.6765,3892.1,3891.8,4.799]
[1758825024927,0.128,3892.3,3891.8,4.799]
[1758825025399,0.001,3892.4,3891.9,2.59513348]
[1758825025602,0.001,3892.4,3892.0,0.128]
[1758825025904,0.001,3892.4,3892.3,2.56917503]
[1758825026294,0.001,3892.4,3892.3,4.20016678]
[1758825027042,0.001,3892.4,3892.3,4.17447503]
[1758825027324,0.001,3892.4,3892.3,5.99785287]
[1758825028212,0.001,3892.4,3892.3,5.53905287]
[1758825028407,0.00064369,3892.8,3892.7,3.36091103]
[1758825028605,0.00064369,3892.8,3892.7,10.29791103]
[1758825028817,0.00064369,3892.8,3892.7,11.11121103]
[1758825029130,0.00064369,3892.8,3892.7,12.02043145]
[1758825029509,0.00064369,3892.8,3892.7,11.79393145]
[1758825029724,0.00064369,3892.8,3892.7,12.47923145]
[1758825031118,0.00064369,3892.8,3892.7,12.02043145]
[1758825031318,0.00064369,3892.8,3892.7,12.47923145]
[1758825031560,0.00064369,3892.8,3892.7,11.79393145]
[1758825031933,0.00064369,3892.8,3892.7,12.02043145]
[1758825032225,0.00064369,3892.8,3892.7,11.79393145]
[1758825032863,0.00064369,3892.8,3892.7,4.06493145]
[1758825033044,0.00064369,3892.8,3892.7,2.141]
[1758825033222,0.67714369,3892.8,3892.7,2.141]
[1758825033554,7.39214369,3892.8,3892.7,2.141]
[1758825033753,7.39214369,3892.8,3892.7,6.932]
[1758825034257,9.96098873,3892.8,3892.7,4.791]
[1758825034622,2.5691913,3892.3,3892.0,2.141]
[1758825034825,2.56917428,3892.4,3892.1,4.79]
[1758825035022,0.6765,3892.7,3892.1,4.79]
[1758825035023,0.244,3892.7,3892.1,7.3592986]
[1758825035354,6.71564369,3892.8,3892.2,0.02569241]
[1758825035681,6.71564369,3892.8,3892.3,4.789]
[1758825035964,0.6765,3892.7,3892.3,4.789]
[1758825036126,0.6765,3892.6,3892.3,4.789]
[1758825036327,6.71564369,3892.8,3892.3,4.789]
[1758825036552,7.14814369,3892.8,3892.3,4.789]
[1758825036749,0.4325,3892.7,3892.3,7.35812242]
[1758825036951,0.4325,3892.7,3892.3,4.789]
[1758825037191,0.6765,3892.6,3892.3,4.789]
[1758825037404,6.71564369,3892.8,3891.6,0.794]
[1758825037571,0.6765,3892.5,3891.7,3.145]
[1758825037756,0.244,3892.4,3891.9,2.56942055]
[1758825038094,0.244,3892.4,3892.0,4.787]
[1758825038289,2.56925708,3892.2,3892.1,4.787]
[1758825038610,3.24574104,3892.2,3892.1,4.787]
[1758825038756,9.96074104,3892.2,3892.1,4.787]
[1758825039107,9.96074104,3892.2,3891.6,0.002]
[1758825039108,2.56957113,3891.7,3891.6,0.002]
[1758825039587,3.79838722,3891.7,3891.6,0.002]
[1758825040187,1.22881609,3891.7,3891.6,0.002]
[1758825040785,3.79838722,3891.7,3891.6,0.002]
[1758825042584,4.48555053,3891.7,3891.6,0.002]
[1758825042789,2.56976923,3891.4,3891.3,0.002]
[1758825042964,2.56976923,3891.4,3890.9,0.002]
[1758825042965,2.57003341,3891.0,3890.9,0.002]
[1758825043164,3.81311541,3891.0,3890.9,0.002]
[1758825043488,3.7988495,3891.0,3890.9,0.002]
[1758825043790,4.48961541,3891.0,3890.9,0.002]
[1758825043958,15.9632285,3891.0,3890.9,0.002]
[1758825044160,17.22117072,3891.0,3890.9,0.002]
[1758825044490,12.7629525,3891.0,3890.9,0.002]
[1758825044999,22.9399785,3891.0,3890.9,0.002]
[1758825045364,23.85923411,3891.0,3890.9,0.002]
[1758825045557,22.9399785,3891.0,3890.9,0.002]
[1758825045972,25.33910044,3891.0,3890.9,0.002]
[1758825046168,21.60426444,3891.0,3890.9,0.002]
[1758825046391,11.3056495,3891.0,3890.9,0.002]
[1758825046590,15.7537005,3891.0,3890.9,0.002]
[1758825046958,7.48787078,3891.0,3890.9,0.002]
[1758825047156,11.5808495,3891.0,3890.9,0.002]
[1758825048598,3.08757759,3891.0,3890.9,0.002]
[1758825048795,2.570005,3891.1,3890.9,0.002]
[1758825048998,3.40313149,3891.3,3890.9,0.002]
[1758825049509,2.57003341,3891.0,3890.9,0.002]
[1758825049672,14.06503341,3891.0,3890.9,0.002]
[1758825049878,9.95853341,3891.0,3890.9,0.002]
[1758825050078,9.28503341,3891.0,3890.9,0.002]
[1758825050277,14.06403341,3891.0,3890.9,0.002]
[1758825050585,9.28503341,3891.0,3890.9,0.002]
[1758825050896,6.715,3891.0,3890.9,0.002]
[1758825051082,9.28503341,3891.0,3890.9,0.002]
[1758825051667,9.95853341,3891.0,3890.9,0.002]
[1758825052201,7.3885,3891.0,3890.9,0.002]
[1758825052383,6.715,3891.0,3890.9,0.002]
[1758825052582,9.28503341,3891.0,3890.9,0.002]
[1758825053083,6.715,3891.0,3890.9,0.002]
[1758825054189,9.28503341,3891.0,3890.9,0.002]
[1758825055033,9.95853341,3891.0,3890.9,0.002]
[1758825055596,28.43253441,3891.0,3890.9,0.002]
[1758825055823,24.23728341,3891.0,3890.9,0.002]
[1758825056130,16.26425541,3891.0,3890.9,0.002]
[1758825056331,14.23670141,3891.0,3890.9,0.002]
[1758825056540,6.24353341,3891.0,3890.9,0.002]
[1758825056695,20.70220641,3891.0,3890.9,0.002]
[1758825057123,18.09189341,3891.0,3890.9,0.002]
[1758825057603,5.57003341,3891.0,3890.9,0.002]
[1758825057804,11.01753341,3891.0,3890.9,0.002]
[1758825058450,5.57003341,3891.0,3890.9,0.002]
[1758825058741,4.773,3891.2,3890.9,0.2404]
[1758825059037,2.57003341,3891.0,3890.9,0.002]
[1758825060640,4.772,3891.1,3890.9,0.2404]
[1758825060807,0.40313149,3891.3,3890.9,0.2404]
[1758825060808,2.57003341,3891.0,3890.9,0.002]
[1758825061245,0.40313149,3891.3,3890.9,0.2404]
[1758825061399,2.56924104,3892.2,3891.0,2.57002715]
[1758825061599,2.56930769,3892.1,3891.4,2.56974698]
[1758825061908,0.001,3892.4,3891.5,0.6939]
[1758825062109,2.56941529,3892.0,3891.5,0.6939]
[1758825062428,0.001,3892.4,3891.6,0.6939]
[1758825062821,2.56917503,3892.3,3891.2,0.6939]
[1758825063017,2.56968114,3891.6,3891.2,0.6939]
[1758825063336,2.56968114,3891.6,3891.3,0.231]
[1758825063541,2.56950511,3891.8,3890.9,0.233]
[1758825063750,2.56981737,3891.4,3890.9,0.233]
[1758825063914,2.56990971,3891.2,3890.9,0.233]
[1758825064114,2.56950511,3891.8,3891.0,0.231]
[1758825064328,7.33849869,3891.9,3891.0,0.231]
[1758825064636,2.56995384,3891.2,3891.0,0.231]
[1758825064831,4.769,3891.9,3890.9,0.002]
[1758825065048,2.57003341,3891.0,3890.9,0.002]
[1758825065835,4.767,3891.4,3890.9,0.002]
[1758825066003,0.128,3891.0,3890.9,0.6876]
[1758825066442,2.69803341,3891.0,3890.9,0.6876]
[1758825066646,2.69803341,3891.0,3890.9,0.002]
[1758825067002,3.38913341,3891.0,3890.9,0.002]
[1758825067658,6.94195991,3891.0,3890.9,0.002]
[1758825067941,11.70695991,3891.0,3890.9,0.002]
[1758825068745,6.25085991,3891.0,3890.9,0.002]
[1758825068971,0.6808265,3891.0,3890.9,0.002]
[1758825069284,3.57135991,3891.0,3890.9,0.002]
[1758825069468,7.88685991,3891.0,3890.9,0.002]
[1758825069863,8.12945991,3891.0,3890.9,0.002]
[1758825070178,3.12285991,3891.0,3890.9,0.002]
[1758825070369,8.57695991,3891.0,3890.9,0.002]
[1758825070569,11.57695991,3891.0,3890.9,0.002]
[1758825070765,19.05951091,3891.0,3890.9,0.002]
[1758825071069,19.05951091,3891.0,3890.8,1e-08]
[1758825071070,2.57009946,3890.9,3890.8,1e-08]
[1758825071381,2.57113483,3889.4,3889.0,0.4546]
[1758825071580,2.57113483,3889.4,3889.1,0.6856]
[1758825071783,2.57114016,3889.4,3888.0,0.002]
[1758825071954,2.57114016,3889.4,3888.7,0.231]
[1758825072161,0.5528265,3889.7,3888.8,0.4546]
[1758825072357,7.33276067,3889.9,3888.9,0.231]
[1758825072680,0.69240299,3890.2,3889.0,2.62231355]
[1758825072877,7.63820399,3890.6,3889.0,2.62231355]
[1758825072878,0.55381234,3890.1,3889.6,2.57094871]
[1758825073082,0.55381234,3890.4,3890.3,2.57049584]
[1758825073284,6.715,3890.6,3890.4,3.25602977]
[1758825073500,6.715,3890.6,3890.5,3.2559637]
[1758825074047,0.69240299,3892.0,3890.7,2.57023157]
[1758825074347,0.55353049,3891.9,3891.4,2.56972583]
[1758825074544,5.45340299,3892.3,3891.4,2.56972583]
[1758825074545,5.45340299,3892.3,3891.6,2.56963716]
[1758825074802,0.001,3892.4,3891.7,0.02569571]
[1758825074803,0.55348703,3892.2,3891.7,0.02569571]
[1758825075006,2.5694203,3892.0,3891.4,0.231]
[1758825075210,0.55348703,3892.0,3891.6,2.56962198]
[1758825075509,2.56936913,3892.1,3891.3,2.56978409]
[1758825075810,2.56943885,3892.0,3891.3,2.56982795]
[1758825076008,0.55348703,3892.1,3891.2,0.231]
[1758825076216,2.56983737,3891.3,3890.7,0.231]
[1758825076380,4.759,3891.8,3890.5,0.4546]
[1758825076585,2.56994006,3891.2,3890.5,0.4546]
[1758825076807,0.55348703,3891.6,3890.4,2.142]
[1758825077108,0.55348703,3891.5,3890.5,0.4546]
[1758825077269,2.56985274,3891.3,3890.5,3.25594492]
[1758825077475,0.55348703,3891.5,3891.3,5.0]
[1758825077782,2.56976923,3891.4,3891.3,5.0]
[1758825077988,6.12325626,3891.4,3891.3,5.0]
[1758825078175,3.55348703,3891.4,3891.3,5.0]
[1758825078505,8.01893721,3891.8,3891.3,5.433]
[1758825078506,0.55348703,3891.5,3891.3,5.433]
[1758825078706,0.55348703,3892.2,3891.4,1.2103]
[1758825078886,2.5694838,3891.9,3891.4,0.667]
[1758825079073,2.56976923,3891.4,3891.3,5.0]
[1758825079676,0.55348703,3891.5,3891.3,5.0]
[1758825079880,2.56970319,3891.5,3891.3,5.0]
[1758825080214,6.715,3891.4,3891.3,7.56983527]
[1758825080413,6.715,3891.4,3891.3,6.02677534]
[1758825080715,6.715,3891.4,3891.3,5.234]
[1758825081091,6.715,3891.4,3891.3,5.0]
[1758825081882,6.715,3891.4,3891.3,5.667]
[1758825082113,6.715,3891.4,3891.3,8.23683527]
[1758825082933,6.715,3891.4,3891.3,5.0]
[1758825083117,9.28476923,3891.4,3891.3,5.0]
[1758825084143,18.28495048,3891.4,3891.3,5.0]
[1758825084348,18.28495048,3891.4,3890.9,0.002]
[1758825084349,2.57003341,3891.0,3890.9,0.002]
[1758825084558,7.32203341,3891.0,3890.9,0.002]
[1758825084706,0.55328125,3891.0,3890.9,0.002]
[1758825085047,3.55328125,3891.3,3890.9,0.002]
[1758825085250,0.55328125,3891.3,3890.9,0.002]
[1758825085430,6.715,3891.4,3891.0,0.667]
[1758825085808,2.56991849,3891.2,3891.0,0.234]
[1758825086003,6.715,3891.4,3891.0,0.234]
[1758825086202,9.28482648,3891.4,3890.9,0.002]
[1758825086443,6.715,3891.4,3890.9,0.002]
[1758825086652,6.715,3891.4,3891.0,3.23701025]
[1758825086948,6.715,3891.4,3891.1,3.5633883]
[1758825087113,6.715,3891.4,3891.2,0.667]
[1758825087539,6.715,3891.4,3891.2,0.234]
[1758825087708,6.715,3891.4,3890.9,0.002]
[1758825087909,6.715,3891.4,3891.1,2.56996736]
[1758825088139,6.715,3891.4,3891.3,2.56983527]
[1758825088309,6.715,3891.4,3891.3,0.667]
[1758825088523,6.715,3891.4,3891.3,3.23683527]
[1758825088730,6.715,3891.4,3891.3,0.667]
[1758825088951,6.715,3891.4,3891.3,3.23683527]
[1758825089250,6.715,3891.4,3891.3,4.13731473]
[1758825089405,6.715,3891.4,3891.3,1.56747946]
[1758825089605,6.715,3891.4,3891.3,0.667]
[1758825090347,6.715,3891.4,3891.0,4.748]
[1758825090763,6.715,3891.4,3891.1,1.48469967]
[1758825091051,0.001,3892.6,3892.1,2.56930705]
[1758825091252,0.001,3892.6,3892.1,7.31630705]
[1758825091449,0.001,3892.6,3892.1,7.55030705]
[1758825091619,0.001,3892.6,3892.1,7.98330705]
[1758825092123,0.001,3892.6,3892.1,4.981]
[1758825092642,0.001,3892.6,3892.1,4.746]
[1758825092812,0.001,3892.6,3892.0,4.745]
[1758825093137,2.69718507,3892.3,3891.6,2.69762589]
[1758825093341,4.9846,3892.6,3891.6,4.745]
[1758825093537,0.128,3892.0,3891.6,4.745]
[1758825093740,0.128,3892.0,3891.6,4.979]
[1758825093921,0.128,3892.0,3891.6,4.745]
[1758825094442,0.128,3892.0,3891.9,2.56943909]
[1758825094647,0.001,3892.2,3892.1,2.56930705]
[1758825094847,0.001,3892.2,3892.1,7.31330705]
[1758825095147,0.001,3892.2,3892.1,7.54630705]
[1758825095311,0.001,3892.2,3891.9,0.128]
[1758825095515,0.001,3892.2,3892.0,4.743]
[1758825095716,0.001,3892.2,3892.1,3.23630705]
[1758825096112,6.716,3892.2,3892.1,3.23630705]
[1758825096326,6.716,3892.2,3891.9,0.128]
[1758825096509,6.716,3892.2,3891.1,0.433]
[1758825096510,0.128,3892.0,3891.4,0.128]
[1758825096715,0.128,3892.0,3891.5,2.079]
[1758825097213,0.128,3892.0,3891.4,0.128]
[1758825097427,0.128,3891.5,3891.0,1.666]
[1758825097863,0.128,3891.5,3891.0,2.0831]
[1758825098027,2.56958019,3891.7,3891.1,0.667]
[1758825098242,2.56958019,3891.7,3891.0,4.65309163]
[1758825098243,0.128,3891.4,3891.0,1.666]
[1758825098425,0.128,3891.4,3891.1,2.56991242]
[1758825098642,0.128,3891.4,3891.2,0.02569901]
[1758825098982,0.128,3891.4,3891.1,2.56995266]
[1758825099185,0.128,3891.4,3891.0,1.666]
[1758825099540,2.69782045,3891.4,3891.0,1.666]
[1758825100185,2.56994651,3891.2,3891.0,1.666]
[1758825100395,0.128,3891.1,3891.0,1.666]
[1758825100539,0.128,3891.6,3891.0,2.86492078]
[1758825100881,0.128,3891.6,3891.0,5.00191306]
[1758825101091,0.2386,3891.7,3890.9,0.002]
[1758825101304,2.69803341,3891.0,3890.9,0.002]
[1758825102175,3.39193341,3891.0,3890.9,0.002]
[1758825102396,0.128,3891.0,3890.9,0.002]
[1758825102580,0.55356074,3891.9,3890.9,0.26170099]
[1758825102786,3.55356074,3891.8,3890.9,0.26170099]
[1758825102971,3.55356074,3891.8,3891.0,2.56996869]
[1758825102972,3.1231259,3891.8,3891.0,2.56996869]
[1758825103171,2.56958235,3891.7,3891.0,3.62720418]
[1758825103373,2.56944842,3891.9,3891.2,2.56989929]
[1758825103701,0.001,3892.2,3890.9,4.739]
[1758825103878,0.001,3892.2,3891.6,2.56958117]
[1758825104079,0.001,3892.2,3891.7,2.56956055]
[1758825104280,0.001,3892.2,3891.6,2.56963716]
[1758825104510,0.001,3892.2,3891.6,1.03126372]
[1758825104810,0.001,3892.2,3891.7,0.02569571]
[1758825105018,0.001,3892.2,3891.7,0.45869571]
[1758825105167,0.001,3892.2,3892.1,2.56930705]
[1758825105369,0.001,3892.2,3892.1,7.33100012]
[1758825105704,0.001,3892.2,3892.1,8.76430705]
[1758825105874,0.001,3892.2,3892.1,10.11177829]
[1758825106895,1e-08,3892.6,3892.5,3.36104303]
[1758825107377,1e-08,3892.6,3892.5,13.74673346]
[1758825107569,1e-08,3892.6,3892.5,13.72104303]
[1758825107768,1e-08,3892.6,3892.5,15.35006016]
[1758825108210,1e-08,3892.6,3892.5,8.65706016]
[1758825108392,1e-08,3892.6,3892.5,22.22306016]
[1758825108805,1e-08,3892.6,3892.5,8.65706016]
[1758825108982,1e-08,3892.6,3892.5,22.22206016]
[1758825110588,1e-08,3892.6,3892.5,22.22106016]
[1758825111022,1e-08,3892.6,3892.5,8.65706016]
[1758825111318,1e-08,3892.6,3892.5,11.73606016]
[1758825111491,1e-08,3892.6,3892.5,11.30306016]
[1758825111885,1e-08,3892.6,3892.5,12.09506016]
[1758825112231,1e-08,3892.6,3892.5,9.44004303]
[1758825112436,1e-08,3892.6,3892.5,6.871]
[1758825112735,0.68990001,3892.6,3892.5,6.871]
[1758825113091,0.68990001,3892.6,3892.5,4.728]
[1758825113293,3.25887704,3892.6,3892.5,4.728]
[1758825113487,3.25889127,3892.6,3892.4,4.728]
[1758825113701,0.6899,3892.5,3892.4,4.728]
[1758825114120,1e-08,3892.6,3892.4,4.728]
[1758825114329,0.2468,3892.5,3892.4,4.728]
[1758825114538,0.6899,3892.5,3892.4,4.728]
[1758825114689,0.2468,3892.5,3892.4,4.728]
[1758825114893,1e-08,3892.6,3892.4,4.728]
[1758825115089,1e-08,3892.6,3892.5,0.02569043]
[1758825115290,1e-08,3892.6,3892.5,2.59473346]
[1758825115799,1e-08,3892.6,3892.5,5.05581956]
[1758825116000,1e-08,3892.6,3892.5,5.03012913]
[1758825116522,1e-08,3892.6,3892.5,12.02512913]
[1758825118790,1e-08,3892.6,3892.5,5.15812913]
[1758825118989,1e-08,3892.6,3892.5,2.269]
[1758825119194,1e-08,3892.6,3892.5,9.56204303]
[1758825119590,1e-08,3892.6,3892.5,6.993]
[1758825119790,1e-08,3892.6,3892.5,9.56204303]
[1758825119991,1e-08,3892.6,3892.5,10.35404303]
[1758825120188,1e-08,3892.6,3892.5,11.66904374]
[1758825120388,1e-08,3892.6,3892.5,12.33614374]
[1758825121210,1e-08,3892.6,3892.5,5.47114374]
[1758825121390,1e-08,3892.6,3892.5,19.02414374]
[1758825121595,1e-08,3892.6,3892.5,22.02414374]
[1758825122204,1e-08,3892.6,3892.5,8.47114374]
[1758825122530,1e-08,3892.6,3892.5,10.87504374]
[1758825122846,0.68990001,3892.6,3891.7,2.56952267]
[1758825123033,0.68990001,3892.6,3891.9,4.721]
[1758825123331,0.6805,3892.5,3891.9,4.721]
[1758825123730,2.5692279,3892.3,3891.9,4.721]
[1758825124057,0.6805,3892.2,3891.9,4.721]
[1758825124627,0.44300001,3892.6,3892.0,0.02569373]
[1758825124832,0.44300001,3892.6,3891.9,4.721]
[1758825124833,2.56924758,3892.2,3891.9,4.721]
[1758825125033,0.6805,3892.1,3891.9,4.721]
[1758825125234,3.24982325,3892.1,3891.9,4.721]
[1758825125429,0.2375,3892.0,3891.9,4.721]
[1758825125632,0.6805,3892.0,3891.9,4.721]
[1758825125939,2.56943909,3891.9,3891.8,4.721]
[1758825126143,0.6805,3891.9,3891.8,4.721]
[1758825126338,3.24993909,3891.9,3891.8,4.721]
[1758825126543,3.24993909,3891.9,3891.8,0.002]
[1758825126770,0.2375,3891.9,3891.8,0.002]
[1758825126965,0.2375,3892.3,3891.8,0.002]
[1758825127164,2.56924104,3892.2,3891.9,4.718]
[1758825127356,2.80674104,3892.2,3891.9,4.718]
[1758825127555,0.6805,3892.2,3891.9,4.718]
[1758825127736,2.56924301,3892.2,3891.9,4.718]
[1758825127938,2.56905301,3892.5,3891.9,4.718]
[1758825127939,2.56933394,3892.1,3891.9,4.718]
[1758825128150,0.68050001,3892.6,3891.9,4.718]
[1758825128151,2.56925495,3892.2,3891.9,4.718]
[1758825128351,0.2375,3892.1,3891.9,4.718]
[1758825128540,3.24987307,3892.0,3891.9,4.718]
[1758825128849,2.56943909,3891.9,3891.8,0.002]
[1758825129040,0.6805,3891.9,3891.8,0.002]
[1758825129351,3.24993909,3891.9,3891.8,0.002]
[1758825130246,2.80661821,3892.4,3891.8,0.002]
[1758825130432,2.80663331,3892.4,3891.8,0.002]
[1758825130631,0.2375,3892.4,3891.8,0.002]
[1758825130835,2.8066224,3892.4,3891.8,0.002]
[1758825131031,2.56932989,3892.1,3891.8,0.002]
[1758825131256,2.80665676,3892.4,3891.8,0.002]
[1758825131464,0.2375,3892.4,3891.8,0.002]
[1758825131669,2.56929824,3892.2,3891.8,0.002]
[1758825132069,0.23750001,3892.6,3891.9,4.716]
[1758825132256,2.56925394,3892.2,3891.9,4.716]
[1758825132681,0.23750001,3892.6,3891.9,4.716]
[1758825132682,1e-08,3892.6,3892.0,2.56937307]
[1758825132979,0.128,3892.4,3892.3,2.56917503]
[1758825133147,1e-08,3892.6,3892.5,2.56904303]
[1758825133479,1e-08,3892.6,3892.5,3.36104303]
[1758825133663,1e-08,3892.6,3892.5,4.21363346]
[1758825133977,1e-08,3892.6,3892.5,5.36341431]
[1758825134176,1e-08,3892.6,3892.5,5.33772388]
[1758825134784,1e-08,3892.6,3892.5,2.30768085]
[1758825135016,1e-08,3892.6,3892.5,9.55104303]
[1758825135281,1e-08,3892.6,3892.5,6.982]
[1758825135441,1e-08,3892.6,3892.0,2.56931505]
[1758825135637,1e-08,3892.6,3892.3,2.56917275]
[1758825135837,2.56898755,3892.6,3892.1,6.854]
[1758825136056,3.37757661,3892.5,3892.1,6.854]
[1758825136283,0.8085,3892.5,3892.1,6.854]
[1758825136466,0.3655,3892.5,3892.1,6.854]
[1758825136665,0.128,3892.5,3892.1,6.854]
[1758825137245,0.128,3892.5,3892.1,9.42330378]
[1758825137948,0.128,3892.5,3892.1,6.854]
[1758825138149,1e-08,3892.6,3892.2,0.6809]
[1758825138378,1e-08,3892.6,3892.3,2.6971702]
[1758825138674,1e-08,3892.6,3892.2,2.56919378]
[1758825138874,1e-08,3892.6,3892.4,0.02569109]
[1758825138875,6.715,3892.5,3892.4,0.02569109]
[1758825139079,1e-08,3892.6,3892.5,3.36104303]
[1758825139241,1e-08,3892.6,3892.5,4.75185264]
[1758825139442,1e-08,3892.6,3892.5,4.50595264]
[1758825139871,1e-08,3892.6,3892.1,0.2459]
[1758825140058,1e-08,3892.6,3892.2,4.71]
[1758825140242,2.56898059,3892.6,3892.2,4.71]
[1758825140578,2.56912923,3892.4,3892.2,4.71]
[1758825140783,2.56904938,3892.5,3892.2,4.71]
[1758825140980,1e-08,3892.6,3892.2,4.71]
[1758825141150,0.24620001,3892.6,3892.2,4.71]
[1758825141342,1e-08,3892.6,3892.3,0.02569175]
[1758825141546,1e-08,3892.6,3892.2,4.71]
[1758825141965,2.56903664,3892.6,3892.2,4.71]
[1758825142166,1e-08,3892.6,3892.3,0.02569175]
[1758825142445,1e-08,3892.6,3892.2,4.71]
[1758825142663,2.56898553,3892.6,3892.2,4.71]
[1758825142893,2.56909664,3892.5,3892.2,4.71]
[1758825143089,1e-08,3892.6,3892.2,4.71]
[1758825143684,2.56905886,3892.5,3892.2,4.71]
[1758825143890,1e-08,3892.6,3892.2,4.71]
[1758825145682,1e-08,3892.6,3892.5,3.36104303]
[1758825145885,1e-08,3892.6,3892.5,3.38673346]
[1758825146061,1e-08,3892.6,3892.5,4.04194303]
[1758825146277,1e-08,3892.6,3892.5,8.74794303]
[1758825146462,1e-08,3892.6,3892.5,5.7439]
[1758825146669,1e-08,3892.6,3892.5,8.06704303]
[1758825147095,1e-08,3892.9,3892.5,5.99051867]
[1758825147366,2.56864709,3893.1,3892.2,4.705]
[1758825147586,0.001,3893.2,3892.3,4.705]
[1758825148174,0.001,3893.2,3892.4,0.02569109]
[1758825148399,0.001,3893.2,3892.8,2.56878753]
[1758825148567,0.001,3893.2,3893.1,2.56864709]
[1758825148787,0.001,3893.2,3893.1,7.27264709]
[1758825148970,0.001,3893.2,3893.1,7.51854709]
[1758825149176,0.001,3893.2,3893.1,8.74554709]
[1758825150006,0.001,3893.2,3893.1,8.87354709]
[1758825150188,0.001,3893.2,3893.1,10.04346241]
[1758825151298,0.001,3893.2,3893.1,2.77081532]
[1758825151509,0.001,3893.2,3893.1,8.0089]
[1758825151822,0.001,3893.2,3892.7,4.702]
[1758825151979,0.001,3893.2,3892.8,0.02568845]
[1758825152167,2.56864709,3893.1,3892.8,0.02568845]
[1758825152369,2.56959103,3893.2,3892.7,4.702]
[1758825152581,2.56884504,3892.8,3892.7,4.702]
[1758825153206,2.56897703,3892.6,3892.5,0.002]
[1758825153408,0.3258,3893.1,3892.5,4.703]
[1758825153706,0.001,3893.2,3892.5,4.703]
[1758825154191,0.058,3893.1,3892.5,4.703]
[1758825154393,2.56897703,3892.6,3892.5,4.703]
[1758825154770,2.56897703,3892.6,3892.5,0.002]
[1758825155910,0.2678,3893.0,3892.5,0.002]
[1758825156113,10.698001,3892.9,3892.5,0.002]
[1758825156281,0.3258,3892.6,3892.5,0.002]
[1758825156476,2.89477703,3892.6,3892.5,0.002]
[1758825156677,8.71463103,3892.6,3892.5,0.002]
[1758825156913,17.14595133,3892.6,3892.5,0.002]
[1758825157122,2.56924104,3892.2,3891.8,0.002]
[1758825157282,5.56970319,3891.5,3890.1,2.143]
[1758825157482,2.57029764,3890.6,3890.1,0.002]
[1758825157689,16.24791864,3890.6,3890.1,0.002]
[1758825158022,8.59041287,3890.6,3890.1,0.002]
[1758825158220,8.59041287,3890.6,3888.7,2.8219]
[1758825158221,2.57128898,3889.1,3888.7,0.6809]
[1758825158585,2.57128898,3889.1,3888.5,1.914]
[1758825159536,2.57128898,3889.1,3888.2,0.2479]
[1758825159537,18.20066498,3889.1,3888.2,0.002]
[1758825159683,18.35254498,3889.1,3888.2,0.002]
[1758825159889,16.73177614,3889.1,3888.2,0.002]
[1758825160516,5.97460714,3889.1,3888.2,0.002]
[1758825160822,10.26828898,3889.1,3888.2,0.002]
[1758825161116,5.57128898,3889.1,3888.2,0.002]